Cogmind - Beta 14 @@@ ROGUE MODE // 2024.10.17 @ 21:22:21 Player: gorb Result: Destroyed by G-34 Mercenary with Small Laser Performance ------------- Evolutions (1) 500 Regions Visited (3) 600 Robots Destroyed (25) 125 Value Destroyed (708) 708 Prototype IDs (2) 40 Alien Tech Used (0) 0 Bonus (50) 50 TOTAL SCORE: 2023 Bonus ------- Follower Combat Kills 50 Cogmind --------- Core Integrity 0/400 Matter 0/300 Energy 94/100 System Corruption 2% Temperature Cool (29) Movement Core (150) Ox2 Location -9/Storage Parts ------- > --- POWER (2) -------- (None) > --- PROPULSION (3) --- (None) > --- UTILITY (2) ------ (None) > --- WEAPON (2) ------- Improved Light Cannon Improved Light Cannon > --- INVENTORY (5) ---- Heat Sink Improved Terrain Scanner Core Shielding Light Armor Plating Backup Laser I Peak State ------------ > --- POWER ------------ (None) > --- PROPULSION ------- Wheel Compact Wheel > --- UTILITY ---------- Small Storage Unit Drone Bay > --- WEAPON ----------- Improved Assault Rifle Improved Assault Rifle > --- INVENTORY -------- Aluminum Leg Heat Sink Improved Terrain Scanner Core Shielding Light Armor Plating EM Pulse Gun Backup Laser I Improved Assault Rifle [Rating: 15] Favorites ----------- Power Ion Engine Engine Ion Engine Propulsion Aluminum Leg Leg Aluminum Leg Wheel Compact Wheel Utility Small Storage Unit Device Improved Terrain Scanner Storage Small Storage Unit Processor Targeting Computer Protection Core Shielding Weapon Light Assault Rifle Energy Gun EM Pulse Gun Ballistic Gun Light Assault Rifle Ballistic Cannon Improved Light Cannon Launcher Mini Grenade Launcher Build | -11 -10 -9 -9 ------- Run | Yrd Mat Mat Sto Slots Evolved 2 | . . 2 . Power 1 | . . 1 . Propulsion 1 | . . 1 . Utility . | . . . . Weapon . | . . . . Parts Attached 28 | 7 7 5 9 Power 2 | 1 . 1 . Engine 2 | 1 . 1 . Core . | . . . . Reactor . | . . . . Propulsion 7 | 2 2 1 2 Treads . | . . . . Leg 2 | . 2 . . Wheel 5 | 2 . 1 2 Hover . | . . . . Flight . | . . . . Utility 6 | 2 2 1 1 Device 2 | 1 . . 1 Storage 1 | 1 . . . Processor 1 | . 1 . . Hackware . | . . . . Protection 2 | . 1 1 . Artifact . | . . . . Weapon 13 | 2 3 2 6 Energy Gun 4 | 1 2 1 . Energy Cannon . | . . . . Ballistic Gun 3 | 1 . . 2 Ballistic Cannon 4 | . . . 4 Launcher 2 | . 1 1 . Special Weapon . | . . . . Impact Weapon . | . . . . Slashing Weapon . | . . . . Piercing Weapon . | . . . . Special Melee Weapon . | . . . . Unidentified Prototypes 2 | . . 1 1 Parts Lost 12 | . 1 5 6 Power 2 | . . 2 . Propulsion 4 | . 1 1 2 Utility 2 | . . . 2 Weapon 4 | . . 2 2 Highest Loss Streak 6 | . 1 5 6 To Critical Strikes . | . . . . Average Slot Usage (%) 74 | . 98 77 37 Engine 9 | . 14 15 . Leg 13 | . 14 20 7 Wheel 7 | . 12 . 4 Device 1 | . 2 . . Storage 11 | . 14 11 9 Processor 3 | . 7 . . Protection 6 | . 4 10 7 Energy Gun 8 | . 12 10 . Ballistic Gun 6 | . 9 . 7 Launcher 4 | . 4 9 . Peak Build Rating 15 | 9 9 11 15 Average Rating 6 | 4 7 9 5 On Entrance 4 | . 9 7 3 Naked Turns 3 | . . . 3 Heaviest Build 18 | 14 15 18 17 Greatest Support 32 | 32 32 20 26 Greatest Overweight (x) 2 | . . . 2 Average Overweight (x) . | . . . . Largest Inventory Capacity 8 | 8 8 8 8 Average Capacity 7 | 7 8 8 7 Most Carried 8 | 5 8 7 8 Average Carried 6 | 2 6 6 7 Final Capacity 8 | 8 8 8 5 Final Carried 7 | 5 6 7 5 Class Distribution -------------------- 100% | Mutant Dominant Class ---------------- Mutant | -10/Materials Mutant | -9/Materials Mutant | -9/Storage Resources | -11 -10 -9 -9 ----------- Run | Yrd Mat Mat Sto Matter Collected 466 | 235 164 67 . Remotely . | . . . . Salvage Created 624 | 32 334 197 61 Parts 50 | 7 21 20 2 Haulers Intercepted 1 | . . 1 . Recyclers Shooed . | . . . . Parts Field Recycled . | . . . . Retrieved Matter . | . . . . Parts Self-Destructed . | . . . . Prevented . | . . . . Kills | -11 -10 -9 -9 ------- Run | Yrd Mat Mat Sto Combat Hostiles Destroyed 18 | . 10 6 2 Guns 8 | . 8 . . Cannons 2 | . . . 2 AOE 8 | . 2 6 . Classes Destroyed 7 | 1 3 3 . Builder 2 | . . 2 . Tunneler 2 | 2 . . . Hauler 1 | . . 1 . Watcher 2 | . 1 1 . Swarmer 3 | . 3 . . Grunt 11 | . 7 2 2 Sentry 4 | . . 4 . Best Kill Streak 9 | 2 4 9 2 Combat Bots Only 5 | . 4 5 2 Max Kills in Single Turn 2 | 2 2 2 1 Gunslinging 1 | . 1 . . Exploded 1 | . 1 1 . Melee . | . . . . Uniques/NPCs Destroyed . | . . . . Combat | -11 -10 -9 -9 -------- Run | Yrd Mat Mat Sto Hostile Shots Fired 164 | . 29 37 98 Missed 49 | . 11 13 25 Damage Taken 1893 | . 321 461 1111 Core 511 | . 102 51 358 Absorbed by Shields . | . . . . Redirected to Shielding 26 | . 14 12 . Regen/Repaired (Parts) 32 | . 32 . . Core Remaining (%) 79 | 100 59 . . Volleys Fired 67 | 1 28 19 19 Largest 2 | 2 2 2 2 Hottest 78 | 60 70 75 78 Shots Fired 105 | 2 53 25 25 Gun 67 | 2 48 6 11 Cannon 14 | . . . 14 Launcher 24 | . 5 19 . Special . | . . . . Kinetic 39 | 1 13 . 25 Thermal 15 | . 15 . . Explosive 24 | . 5 19 . Electromagnetic 27 | 1 20 6 . Robot Hit Streak 11 | 1 10 5 11 Robot Miss Streak 4 | . 4 2 2 Penetration Max . | . . . . Secondary Targets 2 | . 2 . . Max Gunslinging Chain 1 | . 1 . . Shots Hit Robots 72 | 1 32 20 19 Core Hits 50 | 2 23 18 7 Critical Kills . | . . . . Critical Parts Destroyed . | . . . . Critical Strikes 2 | . . . 2 Blast 2 | . . . 2 Melee Attacks . | . . . . Impact . | . . . . Slashing . | . . . . Piercing . | . . . . Sneak Attacks . | . . . . Combat Hostiles . | . . . . Follow-up Attacks . | . . . . Damage Inflicted 1736 | 22 668 667 379 Guns 518 | 22 319 50 127 Cannons 252 | . . . 252 Explosions 966 | . 349 617 . Melee . | . . . . Ramming . | . . . . Kinetic 467 | 10 78 . 379 Thermal 152 | . 152 . . Explosive 887 | . 270 617 . Electromagnetic 230 | 12 168 50 . Impact . | . . . . Slashing . | . . . . Piercing . | . . . . Highest Corruption 2 | . . . 2 Average Corruption 2 | . . . 2 Corruption Purged . | . . . . Corruption Blocked . | . . . . Effects 2 | . . . 2 Matter Fused 1 | . . . 1 Heat Flow Errors 1 | . . . 1 Overload Shots . | . . . . Overflow Damage 28 | . 15 13 . Projectiles . | . . . . Explosions 28 | . 15 13 . Melee . | . . . . Knockbacks 8 | . . . 8 Impact . | . . . . Kinetic 5 | . . . 5 Secondary 3 | . . . 3 Self-Inflicted Damage 244 | . 119 125 . Shots 8 | . 5 3 . Rammed . | . . . . Targets Rammed . | . . . . Kicked . | . . . . Crushed . | . . . . Highest Temperature 129 | 20 129 54 90 Average Temperature 37 | 15 47 21 19 Received Heat Transfer 744 | . 108 114 522 Siege Activations . | . . . . Robots Corrupted . | . . . . Combat Hostiles . | . . . . Parts Fried . | . . . . Impact Corruptions . | . . . . Robots Melted . | . . . . Combat Hostiles . | . . . . Parts Melted . | . . . . Heat Transferred 446 | . 446 . . Parts Sabotaged . | . . . . Parts Stolen . | . . . . Parts Stripped . | . . . . Power Chain Reactions 1 | . 1 . . Alert | -11 -10 -9 -9 ------- Run | Yrd Mat Mat Sto Peak Influence 362 | 10 357 362 152 Initial 152 | . 6 72 152 Average 129 | 1 150 183 89 Maximum Alert Level 1 | . 1 1 . Low Security (%) 82 | 100 75 66 100 Level 1 17 | . 24 33 . Level 2 . | . . . . Level 3 . | . . . . Level 4 . | . . . . Level 5 . | . . . . High Security . | . . . . Max Security . | . . . . Squads Dispatched 6 | . 3 . 3 Investigation 2 | . 1 . 1 Extermination . | . . . . Reinforcement 2 | . 2 . . Assault 2 | . . . 2 Garrison . | . . . . Intercept . | . . . . Searches Triggered . | . . . . Construction Impeded . | . . . . Haulers Reinforced . | . . . . Active Scanning Responses . | . . . . Cargo Convoy Interrupts . | . . . . Stealth | -11 -10 -9 -9 --------- Run | Yrd Mat Mat Sto Distress Signals 1 | . . 1 . Communications Jammed . | . . . . Distress Signals . | . . . . Times Spotted 30 | . 15 7 8 Peak Tracking Total 6 | . 3 5 6 Tactical Retreats . | . . . . Traps | -11 -10 -9 -9 ------- Run | Yrd Mat Mat Sto Traps Triggered 1 | . . . 1 Indirectly . | . . . . Trap Hack Attempts . | . . . . Triggered . | . . . . Disarmed 6 | . 6 . . Reprogrammed . | . . . . Reused . | . . . . Traps Extracted . | . . . . Installed . | . . . . Triggered . | . . . . Machines | -11 -10 -9 -9 ---------- Run | Yrd Mat Mat Sto Machines Disabled 4 | . 1 3 . Max in Single Turn 2 | . 1 2 . Machines Repaired . | . . . . Machines Dismantled . | . . . . Machines Sabotaged . | . . . . Overloaded Fab Kills . | . . . . Hacking | -11 -10 -9 -9 --------- Run | Yrd Mat Mat Sto Machines Accessed 9 | . 5 2 2 Terminals 8 | . 4 2 2 Fabricators . | . . . . Repair Stations 1 | . 1 . . Recycling Units . | . . . . Scanalyzers . | . . . . Garrison Access . | . . . . Total Hacks 25 | . 14 7 4 Successful 19 | . 11 5 3 Failed 6 | . 3 2 1 Catastrophic . | . . . . Database Lockouts . | . . . . Manual . | . . . . Terminals 19 | . 8 7 4 Fabricators . | . . . . Repair Stations 6 | . 6 . . Recycling Units . | . . . . Scanalyzers . | . . . . Garrison Access . | . . . . Terminal Hacks 13 | . 5 5 3 Record 6 | . 3 2 1 Open Door 1 | . . . 1 Terminal Index 1 | . . 1 . Alert Level 1 | . . 1 . Unreport Threat 1 | . . . 1 Disarm Traps 1 | . 1 . . Zone Layout 2 | . 1 1 . Fabricator Hacks . | . . . . Repair Station Hacks 6 | . 6 . . Scan Component 3 | . 3 . . Repair 2 | . 2 . . Refit 1 | . 1 . . Recycling Unit Hacks . | . . . . Scanalyzer . | . . . . Garrison Access Hacks . | . . . . Unauthorized Hacks . | . . . . Terminals . | . . . . Fabricators . | . . . . Repair Stations . | . . . . Recycling Units . | . . . . Scanalyzers . | . . . . Garrison Access . | . . . . Data Cores Recovered . | . . . . Used . | . . . . Hacking Detections 8 | . 5 2 1 Full Trace Events 3 | . 1 1 1 Feedback Events . | . . . . Feedback Blocked . | . . . . Robot Schematics Acquired . | . . . . Robots Built . | . . . . Authchips . | . . . . Time . | . . . . Total Robot Build Rating . | . . . . Part Schematics Acquired . | . . . . Parts Built . | . . . . Authchips . | . . . . Time . | . . . . Total Part Build Rating . | . . . . Parts Repaired 2 | . 2 . . Time 52 | . 52 . . Parts Recycled . | . . . . Recycled Matter . | . . . . Retrieved Matter . | . . . . Retrieved Components . | . . . . Parts Scanalyzed . | . . . . Part Schematics Acquired . | . . . . Parts Damaged . | . . . . Bothacking | -11 -10 -9 -9 ------------ Run | Yrd Mat Mat Sto Used RIF Installer . | . . . . Robots Hacked . | . . . . Non-combat . | . . . . Combat . | . . . . Robot Hacks Applied . | . . . . Relay Couplers Released . | . . . . Fabnet Peak Effective % . | . . . . Robots Rewired . | . . . . Allies Hacked . | . . . . Hacks Repelled . | . . . . Allies | -11 -10 -9 -9 -------- Run | Yrd Mat Mat Sto Total Allies 2 | . . . 2 Largest Group 2 | . . . 2 Highest-Rated Group 62 | . . . 62 Highest-Rated Ally 31 | . . . 31 Total Orders . | . . . . Ally Attacks 9 | . . . 9 Total Damage 127 | . . . 127 Kills 2 | . . . 2 Allies Corrupted . | . . . . Allies Melted . | . . . . Intel | -11 -10 -9 -9 ------- Run | Yrd Mat Mat Sto Robot Analysis Total . | . . . . Derelict Logs Recovered . | . . . . Drone Launches . | . . . . Drone Recoveries . | . . . . Exploration | -11 -10 -9 -9 ------------- Run | Yrd Mat Mat Sto Turns Passed 1019 | 74 454 204 287 Spaces Moved 702 | 65 331 126 180 Core 29 | 24 . . 5 Treads . | . . . . Legs 423 | . 156 126 141 Wheels 250 | 41 175 . 34 Hover . | . . . . Flight . | . . . . Fastest Speed 50 | 50 100 120 50 Average Speed 113 | 81 109 120 126 Slowest Speed 190 | 100 120 120 190 Overloaded Moves . | . . . . Propulsion Burnouts . | . . . . Robots Hopped . | . . . . Cave-ins Triggered . | . . . . Exploration Rate (%) 20 | 5 49 13 16 Regions Visited 3 Branch Regions 1 Pre-discovered Areas . | . . . . Known Exits Taken . | . . . . Unknown Exits Taken 3 | 1 1 1 . Scrap Searched . | . . . . Spaces Dug . | . . . . Terrain Destroyed 128 | . 30 98 . Melee . | . . . . Projectile . | . . . . AOE 128 | . 30 98 . Terrain Rammed . | . . . . Walls Destroyed . | . . . . Machines Disabled . | . . . . Actions | -11 -10 -9 -9 --------- Run | Yrd Mat Mat Sto Total 818 | 84 370 154 210 Wait . | . . . . Move 699 | 64 330 125 180 Hop . | . . . . Pick Up 21 | 12 4 3 2 Fast Attach 6 | . . . 6 Attach 13 | 7 2 3 1 Detach 2 | . . 2 . Swap 9 | . 5 2 2 Drop 1 | . 1 . . Fire 67 | 1 28 19 19 Melee . | . . . . Ram . | . . . . Kick . | . . . . Crush . | . . . . Escape Stasis . | . . . . Rewire . | . . . . Trap . | . . . . Miscellaneous . | . . . . Route ------- -11/Scrapyard -10/Materials -9/Materials -9/Storage History --------- Turn | Location | Event 24 | -11/Scrapyard | Discovered new exit (range 16) 75 | -11/Scrapyard | Entered Materials 316 | -10/Materials | Build established: Mutant 392 | -10/Materials | Repaired Grenade Launcher 418 | -10/Materials | Repaired Lgt. Assault Rifle? 520 | -10/Materials | Discovered new exit (range 8) 529 | -10/Materials | Entered another Materials area 529 | -9/Materials | Evolved 2 slots: Power x1, Propulsion x1 689 | -9/Materials | Discovered new exit (range 15) 733 | -9/Materials | Entered Storage 755 | -9/Storage | Lost 5 parts (2p1n2w) 849 | -9/Storage | Met a pair of Derelict thieves 970 | -9/Storage | Core integrity fell below 50% 1008 | -9/Storage | Core integrity fell below 20% 1020 | -9/Storage | Destroyed by G-34 Mercenary with Small Laser Last Messages --------------- Acquired Imp. Light Cannon. M-13 Machinist repairs L-31 Rogue. Imp. Light Cannon severed. L-31 Rogue knocked back. L-31 Rogue Katana blasted off. G-34 Mercenary knocked back. Com. Wheel destroyed. M-13 Machinist repairs L-31 Rogue. M-13 Machinist fits Backup Laser I on L-31 Rogue. G-34 Mercenary destroyed. M-13 Machinist repairs G-47 Trooper. G-34 Mercenary Aluminum Leg blasted off. G-34 Mercenary destroyed. Imp. Light Cannon destroyed. Acquired Imp. Light Cannon. M-13 Machinist repairs Wheel. M-13 Machinist knocked back. G-47 Trooper knocked back. System corrupted: Matter fused (-3). Map ----- +----------------------------------------------------+ | ?## ##?????????????????????? | | ?# #?????????????????????? | | ?# #?????????????????????? | | ?# #?????????????????????? | | ?# [= #?????????????????????? | | ?# *[% #?????????????????????? | | ?##!% ##?????????????????????? | | ??# #??????????????????????? | | ??# #??????????????????????? | | ??# #??????????????????????? | | ??# [########???????????????? | | ??# " #!!! #???????????????? | | ??# # #???????????????? | | ??# # #!!!!#???????????????? | | ??# #T######???????????????? | | ?## ###????????????????????? | | ?# #?????????????????????? | | ?# #?????????????????????? | | ?# T #?????????????????????? | | ?# #?????????????????????? | | ?# #?????????????????????? | | ?###/###?????????????????????? | | ?# ##?????????????????????? | | ?# %% T#?????????????????????? | | ?##"g"###????????????????????? | | ?#!*l@/ #????????????????????? | | ?#%gm% #????????????????????? | | ?#[m%g #????????????????????? | | ?# ]#????????????????????? | | ?########????????????????????? | | ?????????????????????????????? | | ?????????????????????????????? | | ?????????????????????????????? | | ?????????????????????????????? | | ?????????????????????????????? | | ?????????????????????????????? | | ?????????????????????????????? | | ?????????????????????????????? | | ?????????????????????????????? | | ?????????????????????????????? | | ?????????????????????????????? | | ?????????????????????????????? | | ?????????????????????????????? | | ?????????????????????????????? | | ?????????????????????????????? | | | | | | | | | | | +----------------------------------------------------+ Best States ------------- Heat Dissipation 28 Energy Generation 15 Energy Capacity 275 Matter Stores 300 Matter Capacity 300 Sight Range 16 Terrain Scan Range 16 Terrain Scan Density 10 Core Shielding 20 Evasion (%) 55 Targeting Accuracy 5 Item Schematics ----------------- None Robot Schematics ------------------ None Fabricated ------------ Nothing Alien Tech Used ----------------- None Achievements -------------- None Challenges ------------ None Game ------ Seed PhysicsReactionSuit Manual? 0 Play Time 00:21:14 Cumulative 9.3 hours Start 2024.10.17 @ 20:15:31 End 2024.10.17 @ 21:22:21 Sessions 1 Manual Loads 0 Difficulty Rogue Special Mode None Game No. 18 Rogue 18 Adventurer 0 Explorer 0 Win Type - Total 0 Types 0/0/0/0/0/0/0/0/0 Lore% 7 Gallery% 15 Achievement% 14 Wizard Run 0 Options --------- Layout 1 ASCII 0 Keyboard 0 Movement Mouse Keybinds 0 Fullscreen 1 Font 24/Smallcaps Map View 50x35 Zoom Use 0% Tactical HUD 0 Map Filters NONE Filters NONE Steam 1 RUN: c7185725-ba53-466a-83ad-771370922f99